bitfinex-derivatives/quotes_ETHF0:USTF0_20250702
["timestamp","ask_amount","ask_price","bid_price","bid_amount"]
[1751462021272,25.78766,2448.4,2448.3,0.81668]
[1751462021676,24.971,2448.4,2448.3,0.81668]
[1751462022371,25.78766,2448.4,2448.3,0.81668]
[1751462022972,24.971,2448.4,2448.3,0.81668]
[1751462025079,11.602,2448.7,2448.6,0.81659]
[1751462025378,36.571,2448.7,2448.6,0.81659]
[1751462025680,37.38756,2448.7,2448.6,0.81659]
[1751462026380,36.571,2448.7,2448.6,0.81659]
[1751462026778,11.602,2448.7,2448.6,0.81659]
[1751462026981,36.564,2448.7,2448.6,0.81659]
[1751462027177,11.602,2448.7,2448.6,0.81659]
[1751462027576,11.602,2448.7,2448.6,2.14959]
[1751462028077,0.00613547,2448.9,2448.8,0.81652]
[1751462028279,36.57913547,2448.9,2448.8,0.81652]
[1751462029080,36.57513547,2448.9,2448.8,2.22372]
[1751462029683,36.57413547,2448.9,2448.8,2.22372]
[1751462029888,0.82265547,2448.9,2448.8,0.81652]
[1751462030183,37.38965547,2448.9,2448.8,0.81652]
[1751462031583,0.81652,2448.8,2448.7,0.7284]
[1751462031988,0.81652,2448.8,2448.7,1.54496]
[1751462032185,37.38965547,2448.9,2448.8,0.81652]
[1751462034585,0.81652,2448.8,2448.7,1.54495]
[1751462034890,0.81652,2448.8,2448.7,0.7284]
[1751462035388,0.81656,2448.7,2448.6,0.81657]
[1751462035584,25.76656,2448.7,2448.6,0.81657]
[1751462038087,0.00613547,2448.9,2448.8,0.81652]
[1751462038595,37.36762547,2448.9,2448.8,0.81652]
[1751462038897,0.81659,2448.6,2448.5,1.5062]
[1751462039097,25.77359,2448.6,2448.5,1.5062]
[1751462039595,25.77359,2448.6,2448.5,0.6896]
[1751462039790,0.81662,2448.5,2448.4,1.51314]
[1751462039996,0.81662,2448.5,2448.4,0.6965]
[1751462040598,0.81666,2448.4,2448.3,0.81667]
[1751462040799,37.37466,2448.4,2448.3,0.81667]
[1751462041391,0.81669,2448.3,2448.2,0.7095]
[1751462041595,36.558,2448.4,2448.1,5.53281026]
[1751462041596,0.81672,2448.2,2448.1,0.6875]
[1751462041797,0.81672,2448.2,2447.9,0.8168]
[1751462041798,0.81679,2448.0,2447.9,4.02858026]
[1751462041999,0.81682,2447.9,2447.8,4.02858026]
[1751462042292,12.41782,2447.9,2447.8,4.84544026]
[1751462042900,11.601,2447.9,2447.8,4.84544026]
[1751462043100,12.41782,2447.9,2447.8,0.81686]
[1751462045297,11.601,2447.9,2447.8,0.81686]
[1751462045499,71.20574,2448.2,2448.1,0.81676]
[1751462045700,95.349,2448.2,2448.1,0.81676]
[1751462045897,95.349,2448.2,2447.9,7.49219004]
[1751462045898,0.81679,2448.1,2448.0,0.81677]
[1751462046102,0.81679,2448.1,2448.0,4.86430004]
[1751462046302,0.81679,2448.1,2448.0,0.81677]
[1751462047206,0.81679,2448.0,2447.9,4.86433004]
[1751462047502,25.79679,2448.0,2447.9,4.04753004]
[1751462048900,25.79679,2448.0,2447.9,4.86435004]
[1751462049299,24.98,2448.0,2447.9,4.86435004]
[1751462049702,25.79679,2448.0,2447.9,0.81682]
[1751462049907,25.79679,2448.0,2447.9,4.8677177]
[1751462050203,25.79679,2448.0,2447.9,4.0508977]
[1751462050501,0.81686,2447.8,2447.7,1.3523]
[1751462050805,25.79786,2447.8,2447.7,1.3523]
[1751462051201,25.79786,2447.8,2447.7,2.16919]
[1751462051900,24.981,2447.8,2447.7,2.16919]
[1751462053401,25.79786,2447.8,2447.7,2.16919]
[1751462054302,24.981,2447.8,2447.7,2.16919]
[1751462054503,36.6,2447.8,2447.7,8.62715968]
[1751462054898,0.81678,2448.1,2448.0,0.81676]
[1751462055199,12.42878,2448.1,2448.0,0.81676]
[1751462055405,37.40778,2448.1,2448.0,0.81676]
[1751462056399,0.81682,2448.0,2447.9,0.8168]
[1751462060505,36.591,2448.1,2447.8,0.81684]
[1751462060710,0.81686,2447.9,2447.8,0.81684]
[1751462061012,0.81686,2447.8,2447.7,2.16916]
[1751462061206,0.81686,2447.8,2447.7,1.3523]
[1751462062609,0.81696,2447.5,2447.4,0.81696]
[1751462062912,37.39396,2447.5,2447.4,2.24576]
[1751462063808,37.39396,2447.5,2447.4,5.60984571]
[1751462064411,37.39396,2447.5,2447.4,4.79288571]
[1751462064613,37.39396,2447.5,2447.4,2.24579]
[1751462064813,37.39396,2447.5,2447.4,1.4288]
[1751462065015,0.81699,2447.4,2447.3,4.05094871]
[1751462065209,0.81699,2447.4,2447.3,4.86796871]
[1751462065611,0.81699,2447.4,2447.3,4.05094871]
[1751462065812,0.81702,2447.3,2447.2,4.86798871]
[1751462066010,25.77802,2447.3,2447.2,4.86798871]
[1751462066309,25.77802,2447.3,2447.2,4.05094871]
[1751462066714,0.81706,2447.2,2447.1,6.29933871]
[1751462067706,0.81706,2447.2,2447.1,2.24839]
[1751462070418,0.81703,2447.4,2447.3,0.817]
[1751462070813,11.614,2447.4,2447.3,7.27859244]
[1751462071015,0.81691,2447.7,2447.6,0.81692]
[1751462071210,11.614,2447.8,2447.7,0.7103]
[1751462071409,11.614,2447.8,2447.7,2.8122]
[1751462071613,11.614,2447.8,2447.7,3.62909]
[1751462072618,36.583,2447.8,2447.7,3.62909]
[1751462073315,58.815,2448.1,2447.7,2.8122]
[1751462073523,58.815,2448.1,2448.0,0.81679]
[1751462073814,70.428,2448.1,2448.0,0.81679]
[1751462074019,70.428,2448.1,2448.0,2.22619]
[1751462074220,58.815,2448.1,2448.0,2.22619]
[1751462074519,83.788,2448.1,2448.0,2.22619]
[1751462076620,83.784,2448.1,2448.0,2.22619]
[1751462076823,84.784,2448.1,2448.0,2.22619]
[1751462077819,59.815,2448.1,2448.0,2.22619]
[1751462078014,84.772,2448.1,2448.0,2.22619]
[1751462078222,59.815,2448.1,2448.0,2.22619]
[1751462078423,84.771,2448.1,2448.0,2.22619]
[1751462079525,85.58776,2448.1,2448.0,2.22619]
[1751462079726,85.58776,2448.1,2448.0,0.81679]
[1751462083727,84.771,2448.1,2448.0,0.81679]
[1751462084225,59.815,2448.1,2448.0,0.81679]
[1751462084428,84.763,2448.1,2448.0,0.81679]
[1751462085423,59.815,2448.1,2448.0,2.15499]
[1751462085628,84.763,2448.1,2448.0,2.15499]
[1751462087231,59.815,2448.1,2448.0,2.15499]
[1751462087724,59.815,2448.1,2448.0,5.51653626]
[1751462088031,84.763,2448.1,2448.0,5.51653626]
[1751462088325,11.598,2448.4,2448.3,0.81669]
[1751462088525,36.546,2448.4,2448.3,3.63319]
[1751462088721,11.598,2448.5,2448.4,0.81666]
[1751462088931,0.81658,2448.7,2448.6,0.81659]
[1751462089134,12.41458,2448.7,2448.6,0.81659]
[1751462089435,11.598,2448.7,2448.6,0.81659]
[1751462089628,36.545,2448.7,2448.6,2.17829]
[1751462089931,59.61455,2448.8,2448.7,0.81656]
[1751462090126,96.15955,2448.8,2448.7,0.81656]
[1751462090328,96.15955,2448.8,2448.7,1.54526]
[1751462091233,59.61455,2448.8,2448.7,1.54526]
[1751462091427,96.15855,2448.8,2448.7,1.54526]
[1751462094937,58.798,2448.8,2448.7,1.54526]
[1751462095131,0.8165,2449.0,2448.9,0.81646]
[1751462095327,37.3575,2449.0,2448.9,0.81646]
[1751462096033,0.81646,2449.1,2449.0,0.81642]
[1751462096232,12.41346,2449.1,2449.0,0.81642]
[1751462096427,37.35646,2449.1,2449.0,0.81642]
[1751462096836,0.81646,2449.1,2449.0,0.81642]
[1751462097034,38.69556,2449.1,2449.0,0.81642]
[1751462097937,0.81649,2449.0,2448.9,0.81647]
[1751462099133,36.54,2449.1,2449.0,0.81646]
[1751462099134,37.35645,2449.1,2449.0,0.81646]
[1751462099334,0.81645,2449.1,2449.0,0.81646]
[1751462099638,37.35445,2449.1,2449.0,0.81646]
[1751462100439,38.67905,2449.1,2449.0,0.81646]
[1751462100942,0.81649,2449.0,2448.9,0.81646]
[1751462101240,2.14109,2449.0,2448.9,0.81646]
[1751462101436,0.81649,2449.0,2448.9,0.81646]
[1751462102238,37.35249,2449.0,2448.9,0.81646]
[1751462102438,0.81652,2448.8,2448.7,0.81655]
[1751462102739,0.81662,2448.5,2448.4,4.05173017]
[1751462102937,0.81666,2448.4,2448.3,4.05173017]
[1751462103132,2.15956,2448.4,2448.3,4.05173017]
[1751462103339,5.52110626,2448.4,2448.3,4.05173017]
[1751462103542,2.15956,2448.4,2448.3,4.86842017]
[1751462104242,0.81661,2448.6,2448.3,4.05173017]
[1751462104442,1.3443,2448.8,2448.4,3.36154626]
[1751462104641,0.81662,2448.6,2448.5,0.8166]
[1751462105041,0.81662,2448.5,2448.4,2.21943]
[1751462105244,0.81666,2448.4,2448.3,4.86840017]
[1751462105443,2.16096,2448.4,2448.3,4.86840017]
[1751462106139,0.81666,2448.4,2448.3,4.86840017]
[1751462106339,1.3443,2448.7,2448.3,4.05173017]
[1751462106540,11.596,2448.4,2448.3,8.22996643]
[1751462106941,36.536,2448.4,2448.3,8.22996643]
[1751462107844,36.536,2448.4,2448.3,4.17823626]
[1751462108239,0.81661,2448.6,2448.5,0.81662]
[1751462108545,37.35261,2448.6,2448.5,0.81662]
[1751462108747,12.41261,2448.6,2448.5,0.81662]
[1751462108946,37.35261,2448.6,2448.5,0.81662]
[1751462109150,0.81662,2448.5,2448.4,1.51003]
[1751462109348,0.81666,2448.4,2448.3,1.54727]
[1751462109644,25.75666,2448.4,2448.3,1.54727]
[1751462110238,25.75666,2448.4,2448.2,0.81671]
[1751462110239,0.81672,2448.3,2448.2,0.81671]
[1751462112145,0.81672,2448.2,2448.1,1.53183]
[1751462112348,25.75772,2448.2,2448.1,1.53183]
[1751462114048,24.941,2448.2,2448.1,4.89337626]
[1751462114251,25.75772,2448.2,2448.1,1.53183]
[1751462114548,24.941,2448.2,2448.1,1.53183]
[1751462115346,25.75772,2448.2,2448.1,1.53183]
[1751462115849,24.941,2448.2,2448.1,1.53183]
[1751462116054,24.941,2448.2,2448.1,4.89337626]
[1751462117451,25.75772,2448.2,2448.1,4.89337626]
[1751462117852,24.941,2448.2,2448.1,4.89337626]
[1751462118754,0.81672,2448.3,2448.2,0.81672]
[1751462118952,11.592,2448.2,2448.1,6.35690626]
[1751462119757,0.82275547,2448.6,2448.5,0.81662]
[1751462119951,37.35575547,2448.6,2448.5,0.81662]
[1751462122258,0.82275547,2448.6,2448.5,0.81662]
[1751462122564,37.35575547,2448.6,2448.5,0.81662]
[1751462122859,0.82275547,2448.6,2448.5,0.81662]
[1751462123057,37.35475547,2448.6,2448.5,0.81662]
[1751462123258,36.53813547,2448.6,2448.5,0.81662]
[1751462123462,37.35472547,2448.6,2448.5,0.81662]
[1751462125163,0.82272547,2448.6,2448.5,0.81662]
[1751462125366,37.35472547,2448.6,2448.5,0.81662]
[1751462125663,0.81666,2448.4,2448.3,1.49265]
[1751462125862,25.75666,2448.4,2448.3,1.49265]
[1751462126065,0.81672,2448.2,2448.1,0.7151]
[1751462126361,25.75672,2448.2,2448.1,1.53183]
[1751462126661,25.75672,2448.2,2448.1,0.7151]
[1751462126863,25.75672,2448.2,2448.1,1.53186]
[1751462130765,0.8167,2448.4,2448.3,0.81666]
[1751462131070,0.81666,2448.5,2448.4,0.81663]
[1751462131368,37.34966,2448.5,2448.4,0.81663]
[1751462131571,0.82272547,2448.6,2448.5,0.81662]
[1751462131768,37.35572547,2448.6,2448.5,4.17816626]
[1751462131965,11.59913547,2448.6,2448.5,4.17816626]
[1751462132568,24.94513547,2448.6,2448.5,5.58106626]
[1751462132964,25.76172547,2448.6,2448.5,5.58106626]
[1751462133160,0.82272547,2448.6,2448.5,0.81662]
[1751462133363,25.76172547,2448.6,2448.5,0.81662]
[1751462133561,37.35372547,2448.6,2448.5,0.81662]
[1751462134567,0.00613547,2448.6,2448.5,4.17816626]
[1751462134771,11.592,2448.9,2448.8,0.81652]
[1751462134967,36.53,2448.9,2448.8,5.57176626]
[1751462135161,37.34649,2448.9,2448.8,2.21022]
[1751462135368,36.53,2448.9,2448.8,5.57176626]
[1751462135569,36.53,2448.9,2448.8,0.6943]
[1751462135570,40.70803626,2448.9,2448.8,0.6943]
[1751462135766,0.81662,2448.5,2448.4,4.73043017]
[1751462136070,25.75462,2448.5,2448.4,5.54706017]
[1751462136665,25.75462,2448.5,2448.4,1.49533]
[1751462136962,0.81666,2448.4,2448.3,0.70043547]
[1751462137163,12.40866,2448.4,2448.3,0.00613547]
[1751462137368,13.74376,2448.4,2448.3,4.06035107]
[1751462137562,37.34466,2448.4,2448.3,0.82282547]
[1751462138167,37.34466,2448.4,2448.3,0.00613547]
[1751462138368,0.81672,2448.2,2448.1,4.0542156]
[1751462138568,4.17826626,2448.2,2448.1,4.0542156]
[1751462138770,0.81676,2448.1,2448.0,3.0542156]
[1751462138976,30.48080626,2448.1,2448.0,3.0542156]
[1751462139272,35.60334777,2448.1,2448.0,3.0542156]
[1751462139473,0.81689,2447.7,2447.6,5.67242224]
[1751462139770,37.00812658,2447.7,2447.6,5.67242224]
[1751462139965,0.81692,2447.6,2447.5,6.34212224]
[1751462140374,0.81692,2447.6,2447.5,5.67242224]
[1751462140571,2.18342,2447.6,2447.5,5.67242224]
[1751462141570,0.81696,2447.5,2447.4,5.67242224]
[1751462141770,25.75396,2447.5,2447.4,5.67242224]
[1751462142469,25.75396,2447.5,2447.4,6.48941224]
[1751462142668,25.75396,2447.5,2447.4,0.81699]
[1751462143172,24.937,2447.5,2447.4,0.81699]
[1751462143362,24.937,2447.5,2447.3,0.817]
[1751462143563,24.937,2447.5,2447.2,4.74594626]
[1751462143564,0.81702,2447.3,2447.2,4.74594626]
[1751462143765,25.75702,2447.3,2447.2,4.74594626]
[1751462143973,25.75702,2447.3,2447.2,1.3844]
[1751462144173,0.81706,2447.2,2447.1,5.67242224]
[1751462144375,0.81709,2447.1,2447.0,6.48954224]
[1751462145176,0.81709,2447.1,2447.0,0.81712]
[1751462145375,12.40808,2447.2,2447.1,0.81709]
[1751462145965,36.536,2447.2,2447.1,0.81709]
[1751462148373,37.35306,2447.2,2447.1,0.81709]
[1751462149177,0.81716,2447.0,2446.9,0.81712]
[1751462149477,25.76116,2447.0,2446.9,0.81712]
[1751462150073,0.81716,2446.9,2446.8,46.32531626]
[1751462150268,0.81716,2446.9,2446.8,5.52533626]
[1751462151477,1.459,2447.2,2446.8,4.70814626]
[1751462151776,0.81709,2447.2,2447.1,0.81707]
[1751462151976,37.35709,2447.1,2447.0,4.17866626]
[1751462153180,37.35709,2447.1,2447.0,3.36154626]
[1751462153386,0.81712,2447.0,2446.9,0.81713]
[1751462153576,36.54,2447.1,2447.0,0.81712]
[1751462153778,0.81708,2447.2,2447.1,0.81706]
[1751462153981,37.35708,2447.2,2447.1,0.81706]
[1751462154180,0.81709,2447.1,2447.0,0.8171]
[1751462155085,0.81712,2447.0,2446.9,3.36154626]
[1751462155283,25.76412,2447.0,2446.9,4.17870626]
[1751462155584,24.947,2447.0,2446.9,4.17870626]
[1751462155883,25.76412,2447.0,2446.9,4.17870626]
[1751462156184,24.947,2447.0,2446.9,4.17870626]
[1751462156584,25.76412,2447.0,2446.9,0.81716]
[1751462158386,24.947,2447.0,2446.9,0.81716]
[1751462158582,24.947,2447.0,2446.9,2.18026]
[1751462159385,0.81709,2447.1,2447.0,0.81712]
[1751462159581,0.81709,2447.1,2447.0,4.17866626]
[1751462159582,37.36009,2447.1,2447.0,4.17866626]
[1751462160687,64.71713547,2447.4,2447.0,3.36154626]
[1751462160984,65.53412547,2447.4,2447.3,0.81702]
[1751462161181,76.31313547,2447.4,2447.3,4.17856626]
[1751462161385,101.26013547,2447.4,2447.3,4.17856626]
[1751462161587,102.07712547,2447.4,2447.3,4.17856626]
[1751462162087,102.07712547,2447.4,2447.3,4.87996626]
[1751462162785,102.07712547,2447.4,2447.3,0.7014]
[1751462163083,0.81706,2447.2,2447.1,0.81708]
[1751462163282,0.81705,2447.3,2447.2,0.81702]
[1751462163480,25.76405,2447.3,2447.2,0.81702]
[1751462164488,0.81705,2447.3,2447.2,0.81702]
[1751462164684,37.36005,2447.3,2447.2,0.81702]
[1751462166487,37.36005,2447.3,2447.1,3.36154626]
[1751462166488,0.81706,2447.2,2447.1,4.17860626]
[1751462166788,0.81706,2447.2,2447.1,5.53100626]
[1751462167688,37.35906,2447.2,2447.1,5.53100626]
[1751462167890,37.35906,2447.2,2447.1,4.71394626]
[1751462168087,37.35906,2447.2,2447.1,3.36154626]
[1751462168287,0.81709,2447.1,2447.0,1.5305]
[1751462168981,0.81709,2447.1,2447.0,2.902]
[1751462169980,37.35908,2447.2,2447.1,0.81709]
[1751462170184,37.35908,2447.2,2447.1,5.55013626]
[1751462170989,37.35908,2447.2,2447.1,4.17863626]
[1751462171786,0.81709,2447.1,2447.0,1.5305]
[1751462173092,0.81712,2447.0,2446.9,7.41026596]
[1751462173287,25.76212,2447.0,2446.9,8.22741596]
[1751462173993,25.76212,2447.0,2446.9,7.41026596]
[1751462174195,25.76212,2447.0,2446.9,4.0487197]
[1751462174389,0.81716,2446.9,2446.8,6.2827997]
[1751462174692,0.81716,2446.9,2446.8,5.4656197]
[1751462174892,0.81716,2446.9,2446.8,6.2828097]
[1751462175292,0.81716,2446.9,2446.8,5.4656197]
[1751462176697,0.81716,2446.9,2446.8,4.7501197]
[1751462176896,0.81719,2446.8,2446.7,4.0487197]
[1751462177098,25.76119,2446.8,2446.7,4.0487197]
[1751462179694,11.594,2446.9,2446.8,0.81719]
[1751462179998,12.41114,2447.0,2446.9,0.81716]
[1751462180198,37.35614,2447.0,2446.9,6.23830626]
[1751462181596,37.35614,2447.0,2446.9,2.87676]
[1751462181898,0.81719,2446.8,2446.7,4.0487197]
[1751462182100,25.76219,2446.8,2446.7,4.0487197]
[1751462182296,0.81722,2446.7,2446.6,5.5558697]
[1751462182696,0.81722,2446.7,2446.6,8.91741596]
[1751462184002,0.81722,2446.7,2446.6,4.86869626]
[1751462184199,0.81722,2446.8,2446.7,0.81722]
[1751462184405,37.35622,2446.8,2446.7,0.81722]
[1751462185200,0.81722,2446.8,2446.7,0.81722]
[1751462185406,37.35722,2446.8,2446.7,0.81722]
[1751462185806,5.902,2447.0,2446.9,0.81716]
[1751462186104,43.25917,2447.0,2446.9,4.17870626]
[1751462186299,37.35717,2447.0,2446.9,4.17870626]
[1751462186698,0.00613547,2447.4,2447.3,0.81702]
[1751462186903,12.9664,2448.2,2447.4,2.04243]
[1751462187206,26.91299171,2448.0,2447.9,3.36154626]
[1751462187609,0.81684,2447.9,2447.7,4.17842626]
[1751462187908,0.81683,2447.9,2447.8,0.81683]
[1751462188207,11.595,2447.9,2447.8,0.81686]
[1751462188502,11.595,2447.9,2447.8,2.16846]
[1751462189306,1.3714,2448.6,2448.0,2.04196]
[1751462189602,60.1994,2448.6,2448.5,0.81662]
[1751462189807,96.50444494,2448.6,2448.5,0.81662]
[1751462190908,59.96444494,2448.6,2448.5,0.81662]
[1751462191211,96.49844494,2448.6,2448.5,0.81662]
[1751462192507,97.31503494,2448.6,2448.5,0.81662]
[1751462192813,0.81672,2448.3,2448.2,0.81672]
[1751462193109,25.75772,2448.3,2448.2,0.81672]
[1751462193907,24.941,2448.3,2448.1,1.37673547]
[1751462194107,0.81672,2448.2,2448.1,0.00613547]
[1751462194311,2.23352,2448.2,2448.1,0.00613547]
[1751462194511,7.3560565,2448.2,2448.1,0.00613547]
[1751462195613,0.81687,2447.8,2447.7,0.81688]
[1751462195909,37.34487,2447.8,2447.7,0.81688]
[1751462197712,0.81689,2447.7,2447.6,1.524]
[1751462198011,0.81689,2447.7,2447.6,5.5727197]
[1751462198208,0.81689,2447.7,2447.6,1.524]
[1751462199001,0.81692,2447.6,2447.5,4.0487197]
[1751462199210,25.75392,2447.6,2447.5,4.0487197]
[1751462199507,0.81696,2447.5,2447.4,4.0487197]
[1751462199713,0.81696,2447.5,2447.4,4.8657097]
[1751462199912,0.817,2447.4,2447.3,0.817]
[1751462200208,25.753,2447.4,2447.3,0.817]
[1751462200409,0.81702,2447.3,2447.2,7.18655224]
[1751462200610,25.753,2447.4,2447.3,0.81702]
[1751462201009,24.936,2447.4,2447.3,0.81702]
[1751462201212,24.936,2447.4,2447.3,4.85801073]
[1751462201410,25.75299,2447.4,2447.3,4.85801073]
[1751462201611,24.936,2447.4,2447.3,0.81702]
[1751462202411,25.75299,2447.4,2447.3,0.81702]
[1751462203912,0.81702,2447.3,2447.2,1.51413]
[1751462204408,0.81702,2447.3,2447.2,0.6971]
[1751462204610,0.81709,2447.1,2447.0,4.04099073]
[1751462204805,24.938,2447.1,2446.7,9.71341297]
[1751462205008,0.81719,2446.8,2446.7,4.85819073]
[1751462205213,0.81722,2446.7,2446.6,5.46399073]
[1751462205513,0.81722,2446.7,2446.6,2.24026]
[1751462209610,0.81722,2446.7,2446.6,1.423]
[1751462211309,2.04308,2446.7,2446.3,0.81732]
[1751462211514,0.81734,2446.4,2446.3,1.3526]
[1751462211713,25.75734,2446.4,2446.3,1.3526]
[1751462212113,0.81739,2446.2,2446.1,4.85840073]
[1751462212317,12.40939,2446.2,2446.1,0.81741]
[1751462212913,0.81742,2446.1,2446.0,2.16143]
[1751462213112,25.75942,2446.1,2446.0,2.16143]
[1751462214515,25.73942,2446.1,2446.0,2.16143]
[1751462215209,24.942,2446.1,2446.0,2.16143]
[1751462215519,25.75942,2446.1,2446.0,2.16143]
[1751462216817,24.942,2446.1,2446.0,2.16143]
[1751462219121,25.75942,2446.1,2446.0,2.16143]
[1751462219822,25.75942,2446.1,2446.0,1.344]
[1751462220018,0.81756,2445.8,2445.7,0.81753]
[1751462220220,25.76256,2445.8,2445.7,1.53183]
[1751462220620,25.76256,2445.8,2445.7,0.7143]
[1751462220925,0.81756,2445.7,2445.6,0.7134]
[1751462221127,12.41256,2445.7,2445.6,0.7134]
[1751462221722,0.81766,2445.4,2445.3,0.7014]
[1751462222017,24.946,2445.4,2445.3,1.51909]
[1751462222224,24.946,2445.4,2445.1,0.7112]
[1751462222525,0.81772,2445.2,2445.1,0.7112]
[1751462222722,12.41272,2445.2,2445.1,0.7112]
[1751462222923,0.81783,2444.9,2444.8,0.81783]
[1751462223227,25.76383,2444.9,2444.8,1.4577]
[1751462223628,25.76383,2444.9,2444.8,2.27556]
[1751462224318,25.76383,2444.9,2444.8,2.98676]
[1751462224516,25.76383,2444.9,2444.8,0.7112]
[1751462226820,0.81802,2444.4,2444.3,0.81801]
[1751462227026,25.77202,2444.4,2444.3,1.49741]
[1751462227426,24.954,2444.4,2444.3,1.49741]
[1751462227626,24.954,2444.4,2444.3,2.87901]
[1751462228327,0.8179,2444.8,2444.7,0.81786]
[1751462228527,37.3709,2444.8,2444.7,0.81786]
[1751462228926,36.557,2444.8,2444.7,0.81789]
[1751462229228,36.557,2444.8,2444.5,1.4223]
[1751462229429,0.81799,2444.4,2444.3,0.6794]
[1751462229619,25.77499,2444.4,2444.3,0.6794]
[1751462229928,25.77499,2444.4,2444.3,1.49743]
[1751462231131,24.957,2444.4,2444.3,1.49743]
[1751462231329,0.81794,2444.6,2444.5,0.81792]
[1751462231528,37.37494,2444.6,2444.5,0.81792]
[1751462232427,0.81792,2444.7,2444.6,0.8179]
[1751462232633,0.81796,2444.6,2444.5,0.81794]
[1751462232826,0.81798,2444.5,2444.4,0.81797]
[1751462233032,0.81799,2444.4,2444.3,0.6794]
[1751462233331,25.77799,2444.4,2444.3,1.49742]
[1751462234128,58.856,2445.0,2444.3,5.6794]
[1751462234336,0.81786,2444.8,2444.7,0.81786]
[1751462235027,0.81786,2444.8,2444.3,4.124]
[1751462235028,36.562,2444.9,2444.3,2.079]
[1751462235226,0.81799,2444.4,2444.3,2.897]
[1751462236330,24.96,2444.5,2444.4,0.81799]
[1751462236526,25.77796,2444.5,2444.4,0.81799]
[1751462236729,24.96,2444.5,2444.4,0.81799]
[1751462237036,60.90049,2445.0,2444.3,10.57713]
[1751462237333,0.8179,2444.8,2444.7,0.81786]
[1751462238435,0.81793,2444.7,2444.6,0.81791]
[1751462239435,0.81793,2444.6,2444.5,0.82407547]
[1751462239736,25.78093,2444.6,2444.5,0.82409547]
[1751462239932,24.963,2444.6,2444.5,0.82409547]
[1751462240129,59.856,2445.0,2444.6,2.04474]
[1751462240332,37.38186,2444.9,2444.8,0.81782]
[1751462240732,37.38186,2444.9,2444.7,0.6802]
[1751462240733,0.81786,2444.8,2444.7,0.6802]
[1751462241732,37.38186,2444.8,2444.7,0.6802]
[1751462242337,0.81786,2444.8,2444.7,1.49809]
[1751462242635,37.38286,2444.8,2444.7,1.49809]
[1751462243035,37.38286,2444.8,2444.7,0.6802]
[1751462243237,37.38286,2444.8,2444.7,1.49809]
[1751462243432,37.38286,2444.8,2444.7,0.6802]
[1751462245339,37.38286,2444.8,2444.7,1.49809]
[1751462245930,37.38286,2444.8,2444.7,0.6802]
[1751462248633,37.38286,2444.8,2444.5,0.00613547]
[1751462248634,0.81793,2444.6,2444.5,0.00613547]
[1751462248833,25.78093,2444.6,2444.5,0.00613547]
[1751462249140,25.78093,2444.6,2444.5,0.82409547]
[1751462249344,0.81793,2444.6,2444.5,0.82409547]
[1751462249541,37.38293,2444.6,2444.5,0.82409547]
[1751462250737,37.38393,2444.6,2444.5,0.82409547]
[1751462250938,59.856,2445.0,2444.6,0.81793]
[1751462251241,37.38386,2444.9,2444.8,0.81782]
[1751462251839,37.38386,2444.9,2444.8,2.95012]
[1751462252241,12.42086,2444.9,2444.8,2.95012]
[1751462252441,11.603,2444.9,2444.8,2.95012]
[1751462252641,36.566,2444.9,2444.8,2.95012]
[1751462252836,60.6738,2445.0,2444.8,2.1323]
[1751462253044,71.458,2445.0,2444.9,0.81782]
[1751462253246,96.421,2445.0,2444.9,2.23332]
[1751462253445,1.0,2445.0,2444.9,2.23332]
[1751462253745,25.963,2445.0,2444.9,8.68641]
[1751462254748,26.78079,2445.0,2444.9,2.23332]
[1751462254948,1.81779,2445.0,2444.9,2.23332]
[1751462255148,26.77979,2445.0,2444.9,2.23332]
[1751462255849,26.77979,2445.0,2444.9,0.81782]
[1751462256448,0.81782,2444.9,2444.8,1.53463]
[1751462257553,0.81782,2444.9,2444.8,0.7168]
[1751462258950,0.81782,2444.9,2444.8,1.53466]
[1751462259151,25.77782,2444.9,2444.8,1.53466]
[1751462259956,25.77782,2444.9,2444.8,0.7168]
[1751462261257,0.81786,2444.8,2444.7,0.6904]
[1751462261446,37.37986,2444.8,2444.7,0.6904]
[1751462266362,37.37986,2444.8,2444.7,1.50829]
[1751462266957,11.601,2444.9,2444.8,0.81783]
[1751462267263,37.37782,2444.9,2444.8,0.81783]
[1751462267459,13.41881,2445.0,2444.9,0.81782]
[1751462267660,38.37781,2445.0,2444.9,1.48572]
[1751462269562,38.37781,2445.0,2444.9,0.6679]
[1751462270264,38.37781,2445.0,2444.9,1.48572]
[1751462270465,38.37781,2445.0,2444.9,0.6679]
[1751462270864,38.37781,2445.0,2444.9,1.48572]
[1751462272266,38.37681,2445.0,2444.9,1.48572]
[1751462275565,38.37681,2445.0,2444.9,0.6679]
[1751462275969,38.37681,2445.0,2444.9,1.48572]
[1751462278976,1.0,2445.0,2444.9,1.48572]
[1751462279266,0.00613547,2445.5,2445.4,0.81766]
[1751462279466,24.96213547,2445.5,2445.4,0.81766]
[1751462279666,0.00613547,2445.5,2445.4,1.47996]
[1751462279866,24.96213547,2445.5,2445.4,43.66526]
[1751462280770,0.81753,2445.8,2445.7,0.81756]
[1751462280967,11.599,2446.0,2445.9,0.81749]
[1751462281171,36.553,2446.0,2445.9,0.81749]
[1751462281772,2.04343,2446.3,2445.9,0.81749]
[1751462282070,11.599,2446.2,2446.1,0.81741]
[1751462282372,37.37039,2446.2,2446.1,0.81741]
[1751462282668,36.553,2446.2,2446.1,0.81741]
[1751462283068,37.37039,2446.2,2446.1,0.81741]
[1751462284768,0.81742,2446.1,2446.0,2.046]
[1751462284971,0.81742,2446.1,2446.0,0.6623]